bitfinex-derivatives/quotes_ETHF0:USTF0_20240901
["timestamp","ask_amount","ask_price","bid_price","bid_amount"]
[1725234517728,1.1144,2432.4,2432.1,1.70750766]
[1725234517918,1.1144,2432.4,2432.1,2.27824445]
[1725234518124,1.1144,2432.4,2432.1,1.70750766]
[1725234520232,1.1144,2432.4,2432.2,0.20555]
[1725234521026,5.2256,2432.4,2432.2,0.20555]
[1725234521218,1.1144,2432.4,2432.2,0.20555]
[1725234521431,1.1144,2432.4,2432.1,1.91306766]
[1725234523333,1.1144,2432.4,2432.2,0.57021073]
[1725234523629,1.1144,2432.4,2432.1,1.91306766]
[1725234523830,1.1144,2432.4,2432.2,0.5702074]
[1725234524033,1.1144,2432.4,2432.1,1.91306766]
[1725234524231,1.1144,2432.4,2432.2,0.20556]
[1725234524445,1.0423,2432.5,2432.2,0.77587306]
[1725234524620,1.0423,2432.5,2432.3,1.65470506]
[1725234524825,1.0423,2432.5,2432.3,1.0844]
[1725234525727,1.0423,2432.5,2432.1,0.96778072]
[1725234525922,1.0423,2432.5,2432.2,0.57047494]
[1725234526130,1.0423,2432.5,2432.3,0.57047494]
[1725234526335,1.0423,2432.5,2432.1,1.17334072]
[1725234526727,1.0423,2432.5,2432.1,0.60273306]
[1725234527229,0.20554,2432.4,2431.8,4.95379339]
[1725234527535,3.2078,2432.4,2431.9,0.20558]
[1725234527738,1.0595,2432.3,2431.9,0.20558]
[1725234528433,1.0595,2432.3,2431.8,4.08565789]
[1725234528830,1.0595,2432.3,2431.8,2.84616789]
[1725234529031,3.41339,2431.9,2431.8,0.00616789]
[1725234529439,13.3198,2431.9,2431.8,0.00616789]
[1725234529932,15.5701,2431.9,2431.8,0.00616789]
[1725234530134,9.5701,2431.9,2431.8,0.00616789]
[1725234531133,15.77569,2431.9,2431.8,0.00616789]
[1725234531336,15.77569,2431.9,2430.5,3.22484166]
[1725234531337,63.63802961,2431.9,2431.0,3.2078]
[1725234531631,3.2078,2431.8,2431.1,2.84]
[1725234531836,3.2078,2431.8,2431.1,4.08785]
[1725234532036,4.59087954,2431.7,2431.1,4.08785]
[1725234532239,4.59087954,2431.7,2431.2,0.00616789]
[1725234532433,4.59087954,2431.7,2431.2,0.21180789]
[1725234532734,3.2078,2431.8,2431.2,0.21180789]
[1725234532938,3.2078,2431.8,2431.3,0.20564]
[1725234533440,3.2078,2431.8,2431.2,1.24530789]
[1725234533733,3.2078,2431.8,2431.2,1.03966789]
[1725234533939,2.57124761,2431.9,2431.3,2.84]
[1725234534135,2.57124761,2431.9,2431.5,0.20562]
[1725234534328,2.57124761,2431.9,2431.5,0.20561]
[1725234534525,5.77904761,2431.9,2431.5,0.20561]
[1725234535240,5.77904761,2431.9,2431.4,0.20562]
[1725234535634,5.77904761,2431.9,2431.3,4.11483]
[1725234535835,5.77904761,2431.9,2431.4,0.20563]
[1725234536547,1.25377,2432.1,2431.4,0.20563]
[1725234537838,0.20558,2432.0,2431.3,4.11483]
[1725234538243,0.20558,2432.0,2431.4,0.20563]
[1725234538645,0.20558,2432.0,2431.3,4.11483]
[1725234539142,3.41339,2431.9,2431.3,4.11483]
[1725234539349,3.41342,2431.5,2431.2,0.00616789]
[1725234539952,0.20564,2431.3,2431.2,0.00616789]
[1725234540149,0.20565,2431.2,2430.4,4.18081]
[1725234540346,0.20566,2431.1,2430.4,5.23431]
[1725234540644,4.60332586,2431.1,2430.4,5.23431]
[1725234541040,4.60332586,2431.1,2430.4,5.0286]
[1725234541238,0.21182789,2431.0,2430.5,0.00616789]
[1725234541949,4.37797599,2430.9,2430.5,0.00616789]
[1725234542248,4.11976789,2431.0,2430.5,0.00616789]
[1725234542249,0.00616789,2431.0,2430.5,0.00616789]
[1725234543240,1.33062789,2431.0,2430.5,0.00616789]
[1725234543543,1.12496789,2431.0,2430.5,0.00616789]
[1725234544047,4.45278353,2430.9,2430.5,0.00616789]
[1725234544355,1.0453,2430.8,2430.5,0.00616789]
[1725234544842,5.1597,2430.8,2430.5,0.00616789]
[1725234545147,5.36538,2430.8,2430.5,0.00616789]
[1725234545443,0.20569,2430.7,2430.5,0.00616789]
[1725234545638,0.2057,2430.6,2430.5,0.00616789]
[1725234545838,4.57065802,2430.6,2430.5,0.00616789]
[1725234546038,0.20572,2430.4,2429.9,1.1314]
[1725234546446,0.20572,2430.3,2429.9,1.1314]
[1725234546647,0.20572,2430.3,2429.4,4.2939]
[1725234546648,2.84,2430.0,2429.1,7.3978]
[1725234546841,3.2078,2429.8,2429.0,2.60472971]
[1725234547146,3.2078,2429.8,2429.2,0.21197789]
[1725234547147,0.00616789,2429.6,2429.2,0.21197789]
[1725234547355,0.00616789,2429.6,2429.3,2.84]
[1725234547647,0.00616789,2429.6,2429.3,3.0458]
[1725234547844,0.00616789,2429.6,2429.3,2.84]
[1725234548051,0.00616789,2429.6,2429.2,0.21197789]
[1725234548848,0.00616789,2429.6,2429.3,0.2058]
[1725234549042,0.00616789,2429.6,2429.2,0.21197789]
[1725234549243,0.00616789,2429.6,2429.2,0.00616789]
[1725234551937,0.00616789,2429.6,2429.2,2.84616789]
[1725234552137,0.00616789,2429.6,2429.5,2.84]
[1725234552348,0.00616789,2429.6,2429.3,5.35747328]
[1725234552551,0.00616789,2429.6,2429.2,3.21396789]
[1725234554253,4.33896789,2429.6,2429.2,3.21396789]
[1725234554552,5.63014789,2429.6,2429.2,3.21396789]
[1725234555844,5.42436789,2429.6,2429.2,3.21396789]
[1725234556662,4.76273209,2429.5,2429.2,3.21396789]
[1725234556955,2.21656789,2429.6,2429.2,3.21396789]
[1725234557550,2.21656789,2429.6,2429.2,4.36216789]
[1725234557745,2.21656789,2429.6,2429.2,4.56797789]
[1725234558060,1.09156789,2429.6,2429.2,4.36216789]
[1725234558245,0.00616789,2429.6,2429.2,4.36216789]
[1725234558560,0.00616789,2429.6,2429.4,0.20579]
[1725234558744,0.00616789,2429.6,2429.2,4.56797789]
[1725234559545,0.00616789,2429.6,2429.2,4.36216789]
[1725234560159,0.20579,2429.5,2429.2,3.21396789]
[1725234560347,4.68471489,2429.5,2429.2,3.21396789]
[1725234560541,1.0622,2429.4,2429.2,3.21396789]
[1725234561657,5.179,2429.4,2429.2,3.21396789]
[1725234563057,5.179,2429.4,2429.2,0.00616789]
[1725234563255,5.3848,2429.4,2429.2,0.00616789]
[1725234563563,0.20582,2429.2,2428.6,3.2078]
[1725234563745,1.26762,2429.1,2428.6,4.3172]
[1725234563948,0.20583,2429.0,2428.6,4.3172]
[1725234564146,1.1182,2429.0,2428.6,4.3172]
[1725234564648,1.32403,2429.0,2428.6,0.00411192]
[1725234564857,1.1182,2429.0,2428.6,0.00411192]
[1725234565048,1.1182,2429.0,2428.6,1.11351192]
[1725234565465,3.2078,2429.1,2428.6,1.11351192]
[1725234565662,4.3089,2429.1,2428.6,1.11351192]
[1725234566346,1.1011,2429.1,2428.6,1.11351192]
[1725234567153,4.3089,2429.1,2428.6,1.11351192]
[1725234567360,4.51182441,2429.0,2428.6,1.11351192]
[1725234568257,4.51182441,2429.0,2428.6,0.00411192]
[1725234569354,4.51182441,2429.0,2428.6,1.09211192]
[1725234569746,4.3089,2429.1,2428.8,0.20585]
[1725234569947,4.3089,2429.1,2428.7,0.20585]
[1725234570558,4.3089,2429.1,2428.7,0.20586]
[1725234570753,4.3089,2429.1,2428.8,1.0673]
[1725234571361,1.1011,2429.1,2428.8,1.0673]
[1725234571551,1.0669,2429.3,2428.9,1.0463]
[1725234571747,1.0669,2429.3,2429.0,0.20583]
[1725234572152,1.0669,2429.3,2428.9,1.25213]
[1725234572761,1.0669,2429.3,2428.9,1.0463]
[1725234572962,2.84,2429.1,2428.6,4.29991192]
[1725234573155,2.84,2428.9,2428.6,0.00411192]
[1725234573350,1.0669,2428.8,2428.6,0.00411192]
[1725234573751,1.1216,2428.7,2428.6,0.00411192]
[1725234574553,8.0792,2428.7,2428.6,0.00411192]
[1725234576667,8.28506,2428.7,2428.6,0.00411192]
[1725234576854,8.0792,2428.7,2428.6,0.00411192]
[1725234577060,5.2392,2428.7,2428.6,0.00411192]
[1725234578263,5.44506,2428.7,2428.6,0.00411192]
[1725234578764,15.95404579,2428.7,2428.6,0.00411192]
[1725234580063,15.95404579,2428.7,2427.9,1.1053]
[1725234580064,15.74818579,2428.7,2427.9,1.1053]
[1725234580263,3.2078,2428.4,2427.9,1.1053]
[1725234580470,1.0768,2428.3,2427.9,1.1053]
[1725234581166,1.1328,2428.2,2427.9,1.1053]
[1725234581363,3.9728,2428.2,2427.9,1.1053]
[1725234581961,4.42472838,2428.1,2427.5,3.41375]
[1725234582169,4.42472838,2428.1,2427.6,2.2212]
[1725234582356,3.04592,2428.0,2427.6,2.2212]
[1725234582558,3.04592,2428.0,2427.6,1.1207]
[1725234582760,5.50152838,2427.9,2427.6,1.1207]
[1725234582963,5.70745838,2427.9,2427.6,1.1207]
[1725234583258,5.70745838,2427.9,2427.3,1.1005]
[1725234583259,6.0478,2427.8,2427.3,1.1005]
[1725234583479,1.1328,2427.7,2427.3,1.1005]
[1725234584673,6.0478,2427.8,2427.3,1.1005]
[1725234584674,3.2078,2427.8,2427.3,1.1005]
[1725234584967,3.2078,2427.8,2427.4,0.20596]
[1725234585172,3.2078,2427.8,2427.5,2.1553]
[1725234585364,3.2078,2427.8,2427.5,2.36126]
[1725234585763,4.15678098,2428.1,2427.5,2.1553]
[1725234586067,5.25248098,2428.1,2427.7,0.20594]
[1725234586262,5.25248098,2428.1,2427.6,0.20595]
[1725234586563,1.0957,2428.1,2427.5,2.36125]
[1725234586768,1.0957,2428.1,2427.6,0.20595]
[1725234587167,1.0957,2428.1,2427.7,1.0599]
[1725234587969,1.0957,2428.1,2427.5,2.36125]
[1725234588170,1.0957,2428.1,2427.7,1.0599]
[1725234589368,4.75136813,2428.0,2427.5,1.0988]
[1725234589570,4.75136813,2428.0,2427.6,1.0875]
[1725234589869,1.0957,2428.1,2427.6,1.0875]
[1725234590270,1.30161,2428.1,2427.6,1.0875]
[1725234590469,4.73496163,2428.0,2427.5,1.0988]
[1725234590982,7.57496163,2428.0,2427.5,1.0988]
[1725234591472,3.2078,2427.9,2427.5,1.0988]
[1725234591881,4.57841615,2427.8,2427.5,1.0988]
[1725234595079,4.57841615,2427.8,2427.5,1.30476]
[1725234595277,1.0957,2428.1,2427.5,0.20595]
[1725234595477,2.84,2427.6,2426.9,3.3181]
[1725234595776,5.50194113,2427.9,2426.9,3.3181]
[1725234595777,5.4068,2427.5,2426.9,3.3181]
[1725234596268,2.199,2427.5,2426.9,3.3181]
[1725234596476,2.84,2427.6,2426.9,3.52411]
[1725234596873,43.64,2427.6,2426.9,3.3181]
[1725234597382,7.71065149,2427.5,2426.9,3.3181]
[1725234598571,7.71065149,2427.5,2426.7,3.2078]
[1725234598572,2.84,2427.4,2426.7,3.2078]
[1725234598874,4.46962499,2427.3,2426.8,2.1741]
[1725234599076,3.2078,2427.2,2426.8,2.1741]
[1725234599383,7.0931,2427.2,2426.4,3.41385]
[1725234599578,0.00618072,2427.0,2426.5,0.20778305]
[1725234599985,0.00618072,2427.0,2426.6,1.0674]
[1725234600381,0.00618072,2427.0,2426.7,1.0996]
[1725234600589,0.00618072,2427.0,2426.7,2.2409]
[1725234601580,0.00618072,2427.0,2426.8,4.32682]
[1725234601884,0.00618072,2427.0,2426.9,4.32681]
[1725234602177,0.00618072,2427.0,2426.9,0.20601]
[1725234602489,6.0478,2428.1,2426.9,15.37059733]
[1725234602789,40.8,2428.3,2427.8,0.20593]
[1725234602790,4.34612466,2428.2,2427.8,0.20593]
[1725234602983,4.34612466,2428.2,2427.9,2.1991]
[1725234603187,6.0478,2428.3,2427.9,2.1991]
[1725234603486,2.84618072,2428.3,2427.9,2.20528072]
[1725234604184,3.2078,2428.1,2427.9,0.00618072]
[1725234604386,6.0478,2428.1,2427.9,0.00618072]
[1725234604578,4.53616824,2428.0,2427.9,0.00618072]
[1725234604885,0.00618072,2428.3,2427.9,0.21210072]
[1725234605087,0.00618072,2428.3,2427.9,0.00618072]
[1725234605982,3.91508072,2428.3,2427.9,0.00618072]
[1725234607184,2.84,2428.1,2427.9,0.00618072]
[1725234607488,5.81687872,2428.0,2427.9,0.00618072]
[1725234607693,9.93527872,2428.0,2427.9,0.00618072]
[1725234607892,15.93527872,2428.0,2427.9,0.00618072]
[1725234610495,9.93527872,2428.0,2427.9,0.00618072]
[1725234611585,15.93527872,2428.0,2427.9,0.00618072]
[1725234612191,16.14119872,2428.0,2427.9,0.00618072]
[1725234612801,0.20594,2427.8,2427.2,4.3301]
[1725234613099,2.84,2427.5,2426.8,0.20602]
[1725234613298,1.1112,2427.4,2426.8,0.20602]
[1725234613509,5.62621379,2427.4,2426.8,0.20602]
[1725234614099,5.62621379,2427.4,2426.7,7.79392]
[1725234614299,6.71821379,2427.4,2426.8,0.20602]
[1725234614698,6.71821379,2427.4,2426.7,3.60392]
[1725234615294,6.71821379,2427.4,2426.8,0.20602]
[1725234615793,6.71821379,2427.4,2426.9,0.20601]
[1725234615794,5.62621379,2427.4,2426.9,0.20601]
[1725234616399,5.62621379,2427.4,2427.1,0.20599]
[1725234616604,4.15678098,2427.7,2427.1,4.12]
[1725234616799,4.15678098,2427.7,2427.2,1.1166]
[1725234617000,3.2078,2427.8,2427.2,1.1166]
[1725234617199,3.2078,2427.8,2427.2,3.3268]
[1725234617390,3.2078,2427.8,2427.2,3.53278]
[1725234617591,4.44059418,2427.7,2427.2,3.3268]
[1725234617795,8.08658098,2428.0,2427.2,3.3268]
[1725234617796,8.08658098,2428.0,2427.3,0.20597]
[1725234618097,4.31248473,2427.9,2427.3,0.20597]
[1725234618401,8.08658098,2428.0,2427.4,0.20596]
[1725234618907,4.31248473,2427.9,2427.4,0.20596]
[1725234619298,4.31248473,2427.9,2427.3,0.20597]
[1725234619605,6.0478,2427.8,2427.2,1.1166]
[1725234619804,2.84,2427.5,2426.8,5.3479]
[1725234620009,3.3549,2427.4,2426.8,2.1401]
[1725234620201,7.8017059,2427.4,2426.8,2.34611]
[1725234620907,7.8017059,2427.4,2426.9,0.20601]
[1725234621209,2.2923,2427.4,2426.8,5.3479]
[1725234622101,2.84,2427.7,2427.3,0.20597]
[1725234622299,1.0626,2427.9,2427.5,0.20595]
[1725234622300,3.3569,2427.9,2427.5,0.20595]
[1725234622507,6.84805776,2427.9,2427.5,0.20595]
[1725234622710,2.2943,2427.9,2427.5,0.20595]
[1725234623602,2.2943,2427.9,2427.5,0.20596]
[1725234624007,2.2943,2427.9,2427.4,1.26296]
[1725234624603,2.2943,2427.9,2427.4,1.057]
[1725234624807,2.2943,2427.9,2427.4,1.26297]
[1725234625204,2.2943,2427.9,2427.5,0.20596]
[1725234625408,2.2943,2427.9,2427.5,1.34336]
[1725234625610,1.1409,2427.9,2427.5,1.1374]
[1725234625805,1.1085,2428.2,2427.8,0.20593]
[1725234626300,1.1085,2428.2,2427.9,1.1383]
[1725234626700,41.85818072,2428.3,2427.9,1.1383]
[1725234626701,1.05818072,2428.3,2428.0,0.20591]
[1725234626900,0.00618072,2428.3,2428.0,1.1249]
[1725234627101,0.00618072,2428.3,2428.1,0.20591]
[1725234627313,0.00618072,2428.3,2428.2,0.2059]
[1725234627603,2.84,2429.0,2428.1,6.9584]
[1725234627807,2.84,2429.0,2428.3,0.20589]
[1725234628010,1.052,2428.9,2428.3,0.20589]
[1725234628399,1.052,2428.9,2428.2,1.0918]
[1725234628400,1.052,2428.9,2428.4,0.20588]
[1725234628600,1.05818072,2428.9,2428.5,1.1383]
[1725234629802,1.05818072,2428.9,2428.5,1.34417]
[1725234630316,1.05818072,2428.9,2428.6,0.20586]
[1725234630611,1.05818072,2428.9,2428.5,1.34417]
[1725234630808,1.05818072,2428.9,2428.5,1.1383]
[1725234631405,1.05818072,2428.9,2428.5,1.34417]
[1725234632815,0.00618072,2428.9,2428.7,0.20585]
[1725234633108,0.00618072,2428.9,2428.6,1.25186]
[1725234634616,0.00618072,2428.9,2428.7,0.20586]
[1725234634915,0.00618072,2428.9,2428.6,1.046]
[1725234635316,0.00618072,2428.9,2428.6,1.25186]
[1725234635515,0.00618072,2428.9,2428.8,0.20585]
[1725234635905,0.00618072,2428.9,2428.8,4.32265]
[1725234636414,0.00618072,2428.9,2428.6,7.0938]
[1725234636415,0.00618072,2428.9,2428.6,1.25186]
[1725234636722,0.00618072,2428.9,2428.5,1.1383]
[1725234636920,0.00618072,2428.9,2428.6,3.2078]
[1725234637217,0.00618072,2428.9,2428.5,2.41077]
[1725234637820,0.00618072,2428.9,2428.6,0.20586]
[1725234638116,0.00618072,2428.9,2428.5,2.41077]
[1725234638420,0.00618072,2428.9,2428.5,1.1383]
[1725234641321,6.0478,2428.7,2428.4,0.00618072]
[1725234641620,2.0193,2428.6,2428.4,0.00618072]
[1725234642312,6.05398072,2428.9,2428.4,0.00618072]
[1725234642313,3.21398072,2428.9,2428.5,0.20587]
[1725234642509,3.21398072,2428.9,2428.6,1.0111]
[1725234643023,40.8,2428.8,2428.6,1.0111]
[1725234643218,3.21398072,2428.9,2428.6,1.0111]
[1725234643538,0.00618072,2428.9,2428.7,0.20586]
[1725234644214,0.00618072,2428.9,2428.8,0.20585]
[1725234649924,0.00618072,2428.9,2428.8,7.16265]
[1725234650128,2.0879,2429.5,2429.3,0.2058]
[1725234650520,1.0364,2429.5,2429.4,0.2058]
[1725234650719,2.0612,2429.9,2429.5,0.20579]
[1725234651426,2.06738072,2429.9,2429.5,0.20579]
[1725234651829,2.06738072,2429.9,2429.4,0.20579]
[1725234652023,2.06738072,2429.9,2429.5,0.20579]
[1725234653729,2.06738072,2429.9,2429.4,0.20579]
[1725234654831,2.06738072,2429.9,2429.3,0.20456557]
[1725234654832,2.06738072,2429.9,2429.5,0.20579]
[1725234655029,0.00618072,2429.9,2429.5,0.20579]
[1725234655829,0.00618072,2429.9,2429.6,0.20578]
[1725234656922,0.00618072,2429.9,2429.6,2.32268]
[1725234659526,0.00618072,2429.9,2429.6,2.1169]
[1725234660623,3.21398072,2429.9,2429.1,5.1774]
[1725234660827,1.0678,2429.8,2429.4,0.20579]
[1725234661126,3.21398072,2429.9,2429.3,0.2058]
[1725234661329,0.20578,2429.6,2429.1,5.2634]
[1725234661529,1.0549,2429.5,2429.1,5.2634]
[1725234661739,0.2058,2429.4,2428.9,4.2183]
[1725234661938,10.62345768,2429.5,2428.9,4.2183]
[1725234662432,0.2058,2429.4,2428.9,3.2078]
[1725234662624,3.2078,2429.3,2428.9,3.2078]
[1725234662822,10.76492044,2429.3,2428.6,5.2634]
[1725234663026,10.76492044,2429.3,2428.6,1.0734]
[1725234663027,0.20582,2429.2,2428.6,1.0734]
[1725234663335,10.97073044,2429.3,2428.6,1.0734]
[1725234663733,41.00582,2429.2,2428.6,1.0734]
[1725234664131,0.20584,2429.0,2428.6,1.0734]
[1725234664437,5.73145576,2428.9,2428.6,1.0734]
[1725234664633,6.81665576,2428.9,2428.6,1.0734]
[1725234665033,10.02445576,2428.9,2428.4,0.00618072]
[1725234665230,11.09445576,2428.9,2428.4,0.00618072]
[1725234665430,7.88665576,2428.9,2428.4,0.00618072]
[1725234665634,2.0942,2428.9,2428.5,0.20587]
[1725234665840,2.0942,2428.9,2428.6,1.0695]
[1725234666536,2.0942,2428.9,2428.4,0.00618072]
[1725234666733,2.30004,2428.9,2428.4,0.00618072]
[1725234667034,4.50042376,2428.8,2428.4,0.00618072]
[1725234667427,5.302,2428.9,2428.4,0.00618072]
[1725234667626,5.50784,2428.9,2428.4,0.00618072]
[1725234668240,2.0942,2428.9,2428.4,0.21206072]
[1725234668443,2.0942,2428.9,2428.5,0.20587]
[1725234668642,2.0942,2428.9,2428.6,1.0695]
[1725234669039,6.25361,2429.3,2428.6,1.27536]
[1725234669237,1.1076,2429.2,2428.6,1.27536]
[1725234669433,1.1076,2429.2,2428.6,1.0695]
[1725234669638,1.1076,2429.2,2428.4,0.21206072]
[1725234669639,4.67530612,2429.1,2428.4,0.21206072]
[1725234669841,3.2078,2429.0,2428.4,0.21206072]
[1725234670039,6.0478,2429.0,2428.4,0.00618072]
[1725234670237,0.20585,2428.8,2428.4,0.00618072]
[1725234670435,1.1076,2428.7,2428.4,0.00618072]
[1725234670638,2.1316,2428.7,2428.4,0.00618072]
[1725234673038,2.33746,2428.7,2428.4,0.00618072]
[1725234673556,5.54526,2428.7,2428.4,0.00618072]
[1725234674051,4.42621655,2428.6,2428.4,0.00618072]
[1725234674346,0.20587,2428.5,2428.4,0.00618072]
[1725234674838,4.32347,2428.5,2428.4,0.00618072]
[1725234675339,0.2059,2428.2,2427.7,1.1257]
[1725234675548,2.1564,2428.1,2427.8,3.2078]
[1725234676946,0.00618072,2428.2,2427.9,7.16432]
[1725234677650,0.00618072,2428.2,2427.9,6.9584]
[1725234677842,0.00618072,2428.2,2428.1,0.20591]
[1725234678341,0.00618072,2428.2,2428.1,6.2399]
[1725234678547,0.00618072,2428.2,2428.1,6.44581]
[1725234680242,0.00618072,2428.2,2428.1,6.2399]
[1725234681239,0.00618072,2428.2,2428.1,5.1504]
[1725234681546,0.00618072,2428.2,2427.9,3.04592]
[1725234681849,0.00618072,2428.2,2427.9,4.16452]
[1725234682345,0.00618072,2428.2,2428.1,0.20591]
[1725234682748,0.00618072,2428.2,2428.1,4.32431]
[1725234683140,0.00618072,2428.2,2428.1,4.1184]
[1725234683444,0.00618072,2428.2,2428.0,0.20591]
[1725234685247,0.00618072,2428.2,2427.9,1.1186]
[1725234685946,1.12958072,2428.2,2427.9,1.1186]
[1725234687747,0.00618072,2428.2,2427.9,1.32452]
[1725234688739,0.00618072,2428.2,2427.9,3.9586]
[1725234688939,3.41364,2429.0,2428.1,6.0478]
[1725234689143,4.48494,2429.0,2428.4,0.20588]
[1725234689647,4.48494,2429.0,2428.4,2.32968]
[1725234690053,0.00618072,2428.9,2428.4,2.32968]
[1725234690349,0.00618072,2428.9,2428.4,5.3316]
[1725234690541,0.00618072,2428.9,2428.5,0.20587]
[1725234691035,0.00618072,2428.9,2428.4,5.53748]
[1725234691453,0.00618072,2428.9,2428.5,0.20587]
[1725234691640,0.21203072,2428.9,2428.4,5.3316]
[1725234691843,0.21203072,2428.9,2428.4,3.2078]
[1725234692947,0.00618072,2428.9,2428.4,3.2078]
[1725234693142,0.21202072,2428.9,2428.4,3.2078]
[1725234693342,4.72464642,2428.8,2428.4,3.2078]
[1725234693752,4.72464642,2428.8,2428.2,3.37049]
[1725234694054,7.56464642,2428.8,2428.2,3.1646]
[1725234694347,8.60894642,2428.8,2428.2,3.1646]
[1725234694550,5.76894642,2428.8,2428.2,3.3705]
[1725234694751,5.76894642,2428.8,2428.1,4.19]
[1725234694950,3.2078,2428.6,2428.1,4.19]
[1725234695156,1.0787,2428.5,2428.1,4.19]
[1725234695349,2.1042,2428.5,2428.0,4.3337]
[1725234695550,6.70522687,2428.5,2428.0,4.3337]
[1725234696354,0.20589,2428.4,2427.8,4.19]
[1725234696654,4.30603342,2428.3,2427.8,4.39593]
[1725234696850,4.30603342,2428.3,2427.8,4.60672983]
[1725234697046,2.31008,2428.5,2427.8,4.40079983]
[1725234697455,2.31008,2428.5,2427.8,4.60672983]
[1725234697657,2.1042,2428.5,2427.8,4.60672983]
[1725234698154,2.31007,2428.5,2427.8,4.39593]
[1725234698347,2.31007,2428.5,2427.8,4.19]
[1725234698348,4.43058235,2428.4,2427.8,4.19]
[1725234698749,4.43058235,2428.4,2427.8,4.39593]
[1725234698954,2.1042,2428.5,2428.0,0.20591]
[1725234699157,2.1042,2428.5,2428.1,2.1427]
[1725234699456,2.1042,2428.5,2428.2,1.1954]
[1725234699652,3.2078,2428.7,2428.2,0.9895]
[1725234699855,2.0371,2428.8,2428.3,0.20589]
[1725234700156,1.0381,2428.8,2428.4,0.20588]
[1725234700352,1.0381,2428.8,2428.3,0.20589]
[1725234700743,1.0381,2428.8,2428.2,4.1973]
[1725234700963,0.00618072,2428.9,2428.6,0.20586]
[1725234701150,0.00618072,2428.9,2428.7,0.9895]
[1725234703057,0.00618072,2428.9,2428.7,1.19535]
[1725234703571,0.00618072,2428.9,2428.7,0.20585]
[1725234703755,0.00618072,2428.9,2428.5,3.2078]
[1725234704754,4.53941731,2428.8,2428.5,3.2078]
[1725234704947,1.0378,2428.7,2428.5,3.2078]
[1725234705147,1.0378,2428.7,2428.1,8.0394]
[1725234705148,4.2456,2428.7,2428.1,8.0394]
[1725234705358,1.0407,2428.6,2428.2,0.9987]
[1725234706256,1.0407,2428.6,2428.2,1.20459]
[1725234708251,1.0407,2428.6,2428.2,0.9987]
[1725234709260,1.24657,2428.6,2428.2,0.9987]
[1725234709452,1.0407,2428.6,2428.2,0.9987]
[1725234709763,1.24657,2428.6,2428.2,0.9987]
[1725234710556,4.56518343,2428.5,2427.9,1.0737255]
[1725234710861,2.84,2428.3,2427.9,1.035]
[1725234711154,2.84,2428.3,2427.7,1.03758072]
[1725234711155,5.55052383,2428.2,2427.7,1.03758072]
[1725234711364,5.55052383,2428.2,2427.8,1.035]
[1725234711564,1.0974,2428.1,2427.8,1.035]
[1725234711865,4.50572383,2428.0,2427.7,0.00618072]
[1725234712155,4.50572383,2428.0,2427.7,1.07678072]
[1725234713659,1.0974,2428.1,2427.7,1.07678072]
[1725234714958,1.0974,2428.1,2427.7,1.28272072]
[1725234715152,40.8,2428.3,2427.7,1.28272072]
[1725234715352,8.1229,2428.5,2427.8,0.20593]
[1725234715653,8.1229,2428.5,2427.7,1.28272072]
[1725234715654,4.68850813,2428.4,2427.7,1.28272072]
[1725234715851,4.58553539,2428.4,2427.7,1.28272072]
[1725234716057,4.58553539,2428.4,2427.8,0.20593]
[1725234716454,5.2829,2428.5,2428.0,0.20591]
[1725234716858,3.2078,2428.5,2428.0,2.84]
[1725234717053,3.2078,2428.5,2428.1,0.9915]
[1725234717251,3.2078,2428.5,2428.2,1.0144]
[1725234718658,4.629632,2428.4,2427.9,1.0937]
[1725234719572,4.629632,2428.4,2427.9,1.29962]
[1725234719856,4.629632,2428.4,2427.8,0.9911]
[1725234719857,1.27979,2428.3,2427.8,0.9911]
[1725234720058,2.0927,2428.3,2427.8,0.9911]
[1725234720363,2.0927,2428.3,2427.9,0.20592]
[1725234720568,1.0739,2428.3,2427.9,0.20592]
[1725234721253,3.2078,2428.5,2428.0,1.27631]
[1725234721864,3.2078,2428.5,2428.0,1.0704]
[1725234722061,3.2078,2428.5,2428.2,0.20589]
[1725234722252,3.2078,2428.5,2428.3,1.0501]
[1725234723465,7.3254,2428.5,2428.0,1.27631]
[1725234723661,3.2078,2428.5,2428.0,1.27631]
[1725234723858,3.2078,2428.5,2427.9,1.0756]
[1725234723859,6.0478,2428.5,2427.9,1.0756]
[1725234724062,6.25368,2428.5,2427.9,1.0756]
[1725234724460,0.10297421,2428.4,2427.9,1.0756]
[1725234724657,6.25368,2428.5,2427.9,1.0756]
[1725234724872,3.2078,2428.5,2428.0,0.20592]
[1725234725165,3.2078,2428.5,2428.1,0.2059]
[1725234725363,3.2078,2428.5,2427.9,1.0756]
[1725234725561,3.2078,2428.5,2428.1,0.2059]
[1725234726158,3.2078,2428.5,2428.0,0.20591]
[1725234727264,3.2078,2428.5,2428.1,0.20591]
[1725234728665,3.2078,2428.5,2428.2,0.2059]
[1725234728867,1.022,2428.7,2428.5,0.20587]
[1725234730160,1.05548072,2428.9,2428.6,0.20586]
[1725234730357,2.13498072,2428.9,2428.6,0.20586]
[1725234731165,2.13498072,2428.9,2428.4,4.267]
[1725234731668,2.13498072,2428.9,2428.7,0.20585]
[1725234733758,0.00618072,2428.9,2428.8,0.20585]
[1725234734266,0.00618072,2428.9,2428.8,1.22875]
[1725234734967,3.2078,2430.0,2429.3,0.2058]
[1725234735167,1.088,2429.8,2429.5,0.20579]
[1725234735468,5.37431111,2430.0,2429.7,0.20577]
[1725234735664,1.20555,2430.0,2429.4,2.84]
[1725234735866,1.20555,2430.0,2429.3,3.2078]
[1725234735867,0.20577,2429.8,2429.3,3.2078]
[1725234736071,0.20578,2429.7,2429.3,3.21398072]
[1725234736260,3.21398072,2429.8,2429.3,3.21398072]
[1725234736261,3.41975072,2429.8,2429.3,3.21398072]
[1725234737266,3.21398072,2429.8,2429.3,3.21398072]
[1725234738161,0.00618072,2429.8,2429.3,3.21398072]
[1725234738362,0.00618072,2429.8,2429.4,3.04579]
[1725234738767,0.00618072,2429.8,2429.6,0.20578]
[1725234739171,0.00618072,2429.8,2429.7,1.0469]
[1725234739473,0.00618072,2429.8,2429.5,2.27668]